[Event "LASS Vårturneringar 2018"]
[Site "Linköping, Sweden"]
[Date "2018.05.13"]
[Round "7.3"]
[White "Andersson, Görgen"]
[Black "Qwarfort, Fredrik"]
[Result "1-0"]
[TimeControl "90 min + 30 sec/move + 30 min/40 moves"]
[WhiteElo "1908"]
[BlackElo "1894"]

1. e4 {[%clk 01:30:57]} {[%emt 00:00:02]} d6 {[%clk 01:30:37]} {[%emt
00:00:24]} 2. Bc4 {[%clk 01:30:49]} {[%emt 00:00:39]} Nf6 {[%clk 01:30:54]}
{[%emt 00:00:13]} 3. Nc3 {[%clk 01:30:10]} {[%emt 00:01:09]} c5 {[%clk
01:30:44]} {[%emt 00:00:40]} 4. b3 {[%clk 01:29:53]} {[%emt 00:00:46]} Nc6
{[%clk 01:28:26]} {[%emt 00:02:48]} 5. Bb2 {[%clk 01:30:15]} {[%emt 00:00:08]}
e6 {[%clk 01:26:48]} {[%emt 00:02:07]} 6. f4 {[%clk 01:29:11]} {[%emt
00:01:34]} a6 {[%clk 01:24:28]} {[%emt 00:02:51]} 7. a4 {[%clk 01:24:55]}
{[%emt 00:04:46]} Be7 {[%clk 01:18:56]} {[%emt 00:06:02]} 8. Nf3 {[%clk
01:24:57]} {[%emt 00:00:28]} d5 {[%clk 01:12:39]} {[%emt 00:06:49]} 9. Bd3
{[%clk 01:22:17]} {[%emt 00:03:09]} Nb4 {[%clk 01:09:24]} {[%emt 00:03:45]} 10.
e5 {[%clk 01:20:10]} {[%emt 00:02:37]} Nxd3+ {[%clk 01:08:42]} {[%emt
00:01:11]} 11. cxd3 {[%clk 01:19:29]} {[%emt 00:01:11]} Nd7 {[%clk 01:06:40]}
{[%emt 00:02:33]} 12. O-O {[%clk 01:19:22]} {[%emt 00:00:37]} b6 {[%clk
01:04:01]} {[%emt 00:03:09]} 13. f5 {[%clk 01:18:01]} {[%emt 00:01:50]} Bb7
{[%clk 00:56:44]} {[%emt 00:07:47]} 14. fxe6 {[%clk 01:10:57]} {[%emt
00:07:34]} fxe6 {[%clk 00:57:08]} {[%emt 00:00:05]} 15. d4 {[%clk 01:11:06]}
{[%emt 00:00:21]} O-O {[%clk 00:55:16]} {[%emt 00:02:23]} 16. Qe1 {[%clk
01:03:57]} {[%emt 00:07:39]} Bc6 {[%clk 00:42:39]} {[%emt 00:13:07]} 17. Qg3
{[%clk 01:01:56]} {[%emt 00:02:31]} c4 {[%clk 00:42:33]} {[%emt 00:00:36]} 18.
Qh3 {[%clk 00:57:07]} {[%emt 00:05:19]} Rf5 {[%clk 00:34:56]} {[%emt 00:08:07]}
19. bxc4 {[%clk 00:56:43]} {[%emt 00:00:55]} dxc4 {[%clk 00:34:41]} {[%emt
00:00:45]} 20. d5 {[%clk 00:56:33]} {[%emt 00:00:40]} Bb7 {[%clk 00:29:10]}
{[%emt 00:06:01]} 21. dxe6 {[%clk 00:56:13]} {[%emt 00:00:50]} Rxf3 {[%clk
00:29:32]} {[%emt 00:00:08]} 22. gxf3 {[%clk 00:53:55]} {[%emt 00:02:48]} Nxe5
{[%clk 00:26:41]} {[%emt 00:03:21]} 23. Ne4 {[%clk 00:53:33]} {[%emt 00:00:52]}
Nd3 {[%clk 00:17:39]} {[%emt 00:09:33]} 24. Bc3 {[%clk 00:52:47]} {[%emt
00:01:15]} Bxe4 {[%clk 00:17:39]} {[%emt 00:00:31]} 25. fxe4 {[%clk 00:52:24]}
{[%emt 00:00:52]} Bc5+ {[%clk 00:18:01]} {[%emt 00:00:09]} 26. Kg2 {[%clk
00:48:33]} {[%emt 00:04:21]} Qg5+ {[%clk 00:15:25]} {[%emt 00:03:06]} 27. Qg3
{[%clk 00:48:20]} {[%emt 00:00:43]} Qxg3+ {[%clk 00:15:32]} {[%emt 00:00:23]}
28. hxg3 {[%clk 00:47:45]} {[%emt 00:01:05]} Re8 {[%clk 00:15:56]} {[%emt
00:00:07]} 29. Rf7 {[%clk 00:47:37]} {[%emt 00:00:37]} Rxe6 {[%clk 00:16:10]}
{[%emt 00:00:16]} 30. Rxg7+ {[%clk 00:47:47]} {[%emt 00:00:20]} Kf8 {[%clk
00:16:36]} {[%emt 00:00:05]} 31. Rf1+ {[%clk 00:47:06]} {[%emt 00:01:10]} Ke8
{[%clk 00:17:04]} {[%emt 00:00:02]} 32. Rff7 {[%clk 00:42:46]} {[%emt
00:04:49]} Rxe4 {[%clk 00:17:22]} {[%emt 00:00:13]} 33. Rb7 {[%clk 00:42:24]}
{[%emt 00:00:51]} Re7 {[%clk 00:16:05]} {[%emt 00:01:48]} 34. Rgxe7+ {[%clk
00:40:47]} {[%emt 00:02:07]} Bxe7 {[%clk 00:16:33]} {[%emt 00:00:01]} 35. Rxb6
{[%clk 00:40:47]} {[%emt 00:00:31]} Nc5 {[%clk 00:14:55]} {[%emt 00:02:08]} 36.
Bb4 {[%clk 00:39:48]} {[%emt 00:01:29]} a5 {[%clk 00:13:37]} {[%emt 00:01:48]}
37. Bxc5 {[%clk 00:38:17]} {[%emt 00:02:01]} Bxc5 {[%clk 00:14:01]} {[%emt
00:00:06]} 38. Rc6 {[%clk 00:38:36]} {[%emt 00:00:10]} Bb4 {[%clk 00:14:16]}
{[%emt 00:00:16]} 39. Rxc4 {[%clk 00:38:47]} {[%emt 00:00:20]} Bxd2 {[%clk
00:14:35]} {[%emt 00:00:11]} 40. Rc7 {[%clk 00:38:33]} {[%emt 00:00:42]} h6
{[%clk 00:14:50]} {[%emt 00:00:16]} 41. Kf3 {[%clk 00:38:10]} {[%emt 00:00:53]}
Kd8 {[%clk 00:14:38]} {[%emt 00:00:42]} 42. Rc5 {[%clk 00:36:17]} {[%emt
00:02:23]} Ke7 {[%clk 00:13:17]} {[%emt 00:01:52]} 43. Ke2 {[%clk 00:36:38]}
{[%emt 00:00:08]} Kd6 {[%clk 00:12:25]} {[%emt 00:01:22]} 44. Rb5 {[%clk
00:36:07]} {[%emt 00:01:00]} Bc3 {[%clk 00:12:07]} {[%emt 00:00:48]} 45. Kd3
{[%clk 00:35:20]} {[%emt 00:01:17]} Be1 {[%clk 00:12:22]} {[%emt 00:00:15]} 46.
g4 {[%clk 00:35:14]} {[%emt 00:00:36]} 1-0

[Event "LASS Vårturneringar 2018"]
[Site "Linköping, Sweden"]
[Date "2018.05.13"]
[Round "7.8"]
[White "Karlsson, Henrik"]
[Black "Larsson, Mille"]
[Result "1-0"]
[TimeControl "90 min + 30 sec/move + 30 min/40 moves"]
[WhiteElo "1699"]
[BlackElo "1374"]

1. e4 {[%clk 01:28:51]} {[%emt 00:02:09]} d6 {[%clk 01:29:45]} {[%emt
00:01:16]} 2. Bc4 {[%clk 01:23:56]} {[%emt 00:05:24]} Nf6 {[%clk 01:28:47]}
{[%emt 00:01:29]} 3. Nc3 {[%clk 01:23:15]} {[%emt 00:01:12]} c6 {[%clk
01:28:38]} {[%emt 00:00:39]} 4. d4 {[%clk 01:20:04]} {[%emt 00:03:40]} g6
{[%clk 01:22:08]} {[%emt 00:07:00]} 5. f4 {[%clk 01:18:43]} {[%emt 00:01:51]}
Nbd7 {[%clk 01:16:38]} {[%emt 00:05:59]} 6. Bd3 {[%clk 01:17:35]} {[%emt
00:01:38]} e5 {[%clk 01:15:21]} {[%emt 00:01:47]} 7. dxe5 {[%clk 01:15:48]}
{[%emt 00:02:18]} dxe5 {[%clk 01:15:14]} {[%emt 00:00:37]} 8. f5 {[%clk
01:15:57]} {[%emt 00:00:21]} Nc5 {[%clk 01:15:07]} {[%emt 00:00:37]} 9. Bg5
{[%clk 01:16:10]} {[%emt 00:00:17]} Nxd3+ {[%clk 01:08:10]} {[%emt 00:07:27]}
10. cxd3 {[%clk 01:13:47]} {[%emt 00:02:53]} Bg7 {[%clk 01:05:54]} {[%emt
00:02:46]} 11. fxg6 {[%clk 01:12:28]} {[%emt 00:01:49]} fxg6 {[%clk 01:05:36]}
{[%emt 00:00:48]} 12. Nf3 {[%clk 01:11:16]} {[%emt 00:01:41]} Qd6 {[%clk
01:03:55]} {[%emt 00:02:11]} 13. O-O {[%clk 01:10:06]} {[%emt 00:01:40]} b6
{[%clk 00:59:47]} {[%emt 00:04:39]} 14. d4 {[%clk 01:06:19]} {[%emt 00:04:17]}
exd4 {[%clk 00:56:07]} {[%emt 00:04:11]} 15. Qxd4 {[%clk 01:04:40]} {[%emt
00:02:09]} Qxd4+ {[%clk 00:48:22]} {[%emt 00:08:14]} 16. Nxd4 {[%clk 01:05:04]}
{[%emt 00:00:07]} Nxe4 {[%clk 00:47:57]} {[%emt 00:00:55]} 17. Nxe4 {[%clk
01:00:49]} {[%emt 00:04:45]} Bxd4+ {[%clk 00:47:56]} {[%emt 00:00:31]} 18. Kh1
{[%clk 01:01:12]} {[%emt 00:00:06]} Ba6 {[%clk 00:46:29]} {[%emt 00:01:58]} 19.
Nf6+ {[%clk 01:00:20]} {[%emt 00:01:22]} Kf7 {[%clk 00:44:51]} {[%emt
00:02:08]} 20. Ng4+ {[%clk 00:54:43]} {[%emt 00:06:07]} Bxf1 {[%clk 00:43:57]}
{[%emt 00:01:24]} 21. Rxf1+ {[%clk 00:55:05]} {[%emt 00:00:08]} Ke6 {[%clk
00:43:11]} {[%emt 00:01:16]} 22. h3 {[%clk 00:51:16]} {[%emt 00:04:19]} Rae8
{[%clk 00:38:35]} {[%emt 00:05:05]} 23. b4 {[%clk 00:48:34]} {[%emt 00:03:13]}
h5 {[%clk 00:29:34]} {[%emt 00:09:31]} 24. Nh2 {[%clk 00:44:23]} {[%emt
00:04:41]} Rhf8 {[%clk 00:27:35]} {[%emt 00:02:29]} 25. Nf3 {[%clk 00:44:42]}
{[%emt 00:00:10]} c5 {[%clk 00:26:20]} {[%emt 00:01:45]} 26. Bh6 {[%clk
00:36:40]} {[%emt 00:08:31]} Rf7 {[%clk 00:21:15]} {[%emt 00:05:37]} 27. Ng5+
{[%clk 00:36:46]} {[%emt 00:00:24]} 1-0

[Event "LASS Vårturneringar 2018"]
[Site "Linköping, Sweden"]
[Date "2018.05.13"]
[Round "7.6"]
[White "Alos, Raul Toledano"]
[Black "Ivarsson, Simon"]
[Result "1/2-1/2"]
[TimeControl "90 min + 30 sec/move + 30 min/40 moves"]
[WhiteElo "1772"]
[BlackElo "1726"]

1. e4 {[%clk 01:30:58]} {[%emt 00:00:01]} c5 {[%clk 01:30:59]} 2. Nc3 {[%clk
01:31:23]} {[%emt 00:00:06]} e6 {[%clk 01:31:19]} {[%emt 00:00:11]} 3. f4
{[%clk 01:31:42]} {[%emt 00:00:10]} d5 {[%clk 01:31:31]} {[%emt 00:00:18]} 4.
e5 {[%clk 01:31:58]} {[%emt 00:00:14]} Be7 {[%clk 01:31:29]} {[%emt 00:00:32]}
5. Nf3 {[%clk 01:32:21]} {[%emt 00:00:07]} Nc6 {[%clk 01:31:13]} {[%emt
00:00:46]} 6. Bb5 {[%clk 01:32:10]} {[%emt 00:00:42]} Bd7 {[%clk 01:31:37]}
{[%emt 00:00:05]} 7. Bxc6 {[%clk 01:29:49]} {[%emt 00:02:52]} Bxc6 {[%clk
01:31:54]} {[%emt 00:00:13]} 8. d3 {[%clk 01:30:09]} {[%emt 00:00:09]} Nh6
{[%clk 01:31:44]} {[%emt 00:00:40]} 9. O-O {[%clk 01:29:43]} {[%emt 00:00:56]}
Nf5 {[%clk 01:31:24]} {[%emt 00:00:50]} 10. Qe1 {[%clk 01:27:36]} {[%emt
00:02:37]} b5 {[%clk 01:24:12]} {[%emt 00:07:41]} 11. b3 {[%clk 01:26:07]}
{[%emt 00:02:00]} Qb6 {[%clk 01:21:47]} {[%emt 00:02:56]} 12. Kh1 {[%clk
01:26:30]} {[%emt 00:00:06]} a5 {[%clk 01:20:30]} {[%emt 00:01:47]} 13. g4
{[%clk 01:21:14]} {[%emt 00:05:47]} Nh6 {[%clk 01:16:28]} {[%emt 00:04:31]} 14.
h3 {[%clk 01:16:34]} {[%emt 00:05:10]} Rf8 {[%clk 01:15:07]} {[%emt 00:01:51]}
15. Bd2 {[%clk 01:12:43]} {[%emt 00:04:21]} Bb7 {[%clk 01:12:51]} {[%emt
00:02:43]} 16. Kh2 {[%clk 01:08:44]} {[%emt 00:04:29]} Rc8 {[%clk 01:10:17]}
{[%emt 00:03:07]} 17. Rb1 {[%clk 00:59:38]} {[%emt 00:09:36]} Ng8 {[%clk
01:06:23]} {[%emt 00:04:24]} 18. f5 {[%clk 00:53:31]} {[%emt 00:06:36]} b4
{[%clk 01:03:48]} {[%emt 00:03:06]} 19. Ne2 {[%clk 00:50:40]} {[%emt 00:03:20]}
Qc6 {[%clk 00:58:57]} {[%emt 00:05:22]} 20. d4 {[%clk 00:49:12]} {[%emt
00:01:58]} a4 {[%clk 00:53:44]} {[%emt 00:05:44]} 21. dxc5 {[%clk 00:44:10]}
{[%emt 00:05:32]} Qxc5 {[%clk 00:53:29]} {[%emt 00:00:45]} 22. Ned4 {[%clk
00:43:43]} {[%emt 00:00:57]} Ba6 {[%clk 00:51:30]} {[%emt 00:02:29]} 23. Rg1
{[%clk 00:44:11]} {[%emt 00:00:02]} axb3 {[%clk 00:51:40]} {[%emt 00:00:20]} 24.
cxb3 {[%clk 00:44:28]} {[%emt 00:00:13]} Qb6 {[%clk 00:51:43]} {[%emt
00:00:26]} 25. Be3 {[%clk 00:43:45]} {[%emt 00:01:13]} Qb8 {[%clk 00:51:41]}
{[%emt 00:00:33]} 26. Qf2 {[%clk 00:39:58]} {[%emt 00:04:17]} Bd3 {[%clk
00:50:01]} {[%emt 00:02:09]} 27. Rbc1 {[%clk 00:38:14]} {[%emt 00:02:15]} Kd7
{[%clk 00:49:51]} {[%emt 00:00:40]} 28. Bf4 {[%clk 00:33:09]} {[%emt 00:05:36]}
Rxc1 {[%clk 00:47:33]} {[%emt 00:02:48]} 29. Rxc1 {[%clk 00:33:36]} {[%emt
00:00:02]} Rc8 {[%clk 00:47:57]} {[%emt 00:00:06]} 30. Qd2 {[%clk 00:32:21]}
{[%emt 00:01:45]} Be4 {[%clk 00:47:15]} {[%emt 00:01:12]} 31. f6 {[%clk
00:28:48]} {[%emt 00:04:02]} gxf6 {[%clk 00:47:05]} {[%emt 00:00:40]} 32. exf6
{[%clk 00:29:01]} {[%emt 00:00:17]} Bd6 {[%clk 00:47:23]} {[%emt 00:00:12]} 33.
Bxd6 {[%clk 00:25:39]} {[%emt 00:03:52]} Qxd6 {[%clk 00:47:08]} {[%emt
00:00:44]} 1/2-1/2

[Event "LASS Vårturneringar 2018"]
[Site "Linköping, Sweden"]
[Date "2018.05.13"]
[Round "7.2"]
[White "Olsson, Magnus"]
[Black "Johansson, Henrik"]
[Result "1/2-1/2"]
[TimeControl "90 min + 30 sec/move + 30 min/40 moves"]
[WhiteElo "1677"]
[BlackElo "1675"]

1. c4 {[%clk 01:30:46]} {[%emt 00:00:14]} b6 {[%clk 01:30:34]} {[%emt
00:00:25]} 2. Nf3 {[%clk 01:30:30]} {[%emt 00:00:46]} Bb7 {[%clk 01:30:52]}
{[%emt 00:00:12]} 3. Nc3 {[%clk 01:30:20]} {[%emt 00:00:41]} e6 {[%clk
01:29:09]} {[%emt 00:02:12]} 4. g3 {[%clk 01:28:07]} {[%emt 00:02:43]} Nf6
{[%clk 01:26:09]} {[%emt 00:03:30]} 5. Bg2 {[%clk 01:27:02]} {[%emt 00:01:35]}
Nc6 {[%clk 01:17:09]} {[%emt 00:09:30]} 6. O-O {[%clk 01:25:29]} {[%emt
00:02:04]} Be7 {[%clk 01:13:11]} {[%emt 00:04:27]} 7. d4 {[%clk 01:24:29]}
{[%emt 00:01:31]} O-O {[%clk 01:07:08]} {[%emt 00:06:34]} 8. a3 {[%clk
01:21:36]} {[%emt 00:03:24]} Na5 {[%clk 00:57:43]} {[%emt 00:09:54]} 9. Nd2
{[%clk 01:18:15]} {[%emt 00:03:51]} Bxg2 {[%clk 00:55:41]} {[%emt 00:02:32]} 10.
Kxg2 {[%clk 01:18:19]} {[%emt 00:00:26]} d5 {[%clk 00:48:54]} {[%emt 00:07:16]}
11. cxd5 {[%clk 01:17:08]} {[%emt 00:01:42]} Nxd5 {[%clk 00:43:27]} {[%emt
00:05:57]} 12. Nf3 {[%clk 01:15:24]} {[%emt 00:02:14]} Nc6 {[%clk 00:37:40]}
{[%emt 00:06:17]} 13. e3 {[%clk 01:13:26]} {[%emt 00:02:29]} Nxc3 {[%clk
00:32:21]} {[%emt 00:05:48]} 14. bxc3 {[%clk 01:13:25]} {[%emt 00:00:31]} Qd5
{[%clk 00:29:05]} {[%emt 00:03:45]} 15. Qe2 {[%clk 01:12:09]} {[%emt 00:01:46]}
Qe4 {[%clk 00:27:45]} {[%emt 00:01:50]} 16. Rd1 {[%clk 01:09:31]} {[%emt
00:03:08]} Bf6 {[%clk 00:25:58]} {[%emt 00:02:16]} 17. Qd3 {[%clk 01:07:06]}
{[%emt 00:02:56]} Qxd3 {[%clk 00:22:46]} {[%emt 00:03:42]} 18. Rxd3 {[%clk
01:07:10]} {[%emt 00:00:26]} Rad8 {[%clk 00:22:28]} {[%emt 00:00:47]} 19. Bb2
{[%clk 01:05:41]} {[%emt 00:02:00]} e5 {[%clk 00:21:43]} {[%emt 00:01:14]} 20.
Rdd1 {[%clk 01:05:45]} {[%emt 00:00:26]} exd4 {[%clk 00:21:16]} {[%emt
00:00:57]} 21. cxd4 {[%clk 01:04:45]} {[%emt 00:01:31]} Ne7 {[%clk 00:20:25]}
{[%emt 00:01:20]} 22. a4 {[%clk 01:02:59]} {[%emt 00:02:18]} c5 {[%clk
00:20:21]} {[%emt 00:00:33]} 23. Ba3 {[%clk 01:03:15]} {[%emt 00:00:14]} cxd4
{[%clk 00:17:41]} {[%emt 00:03:10]} 24. exd4 {[%clk 01:02:31]} {[%emt
00:01:14]} Rfe8 {[%clk 00:17:42]} {[%emt 00:00:28]} 25. Bxe7 {[%clk 01:00:45]}
{[%emt 00:02:17]} Rxe7 {[%clk 00:17:41]} {[%emt 00:00:30]} 26. Rac1 {[%clk
00:57:20]} {[%emt 00:03:56]} g6 {[%clk 00:16:55]} {[%emt 00:01:15]} 27. Kf1
{[%clk 00:56:37]} {[%emt 00:01:13]} Red7 {[%clk 00:15:23]} {[%emt 00:02:02]} 28.
Rc4 {[%clk 00:56:29]} {[%emt 00:00:39]} Kg7 {[%clk 00:11:22]} {[%emt 00:04:30]}
29. h4 {[%clk 00:56:29]} {[%emt 00:00:30]} h6 {[%clk 00:11:26]} {[%emt
00:00:26]} 30. g4 {[%clk 00:56:12]} {[%emt 00:00:47]} g5 {[%clk 00:11:19]}
{[%emt 00:00:37]} 31. hxg5 {[%clk 00:56:18]} {[%emt 00:00:25]} hxg5 {[%clk
00:11:27]} {[%emt 00:00:21]} 32. Ke2 {[%clk 00:56:12]} {[%emt 00:00:36]} Re8+
{[%clk 00:10:58]} {[%emt 00:00:59]} 33. Kd3 {[%clk 00:56:14]} {[%emt 00:00:28]}
Red8 {[%clk 00:10:28]} {[%emt 00:00:59]} 34. Re1 {[%clk 00:53:45]} {[%emt
00:03:00]} Rd5 {[%clk 00:09:35]} {[%emt 00:01:23]} 35. Re4 {[%clk 00:52:15]}
{[%emt 00:02:00]} a6 {[%clk 00:09:32]} {[%emt 00:00:33]} 36. Rb4 {[%clk
00:51:28]} {[%emt 00:01:17]} b5 {[%clk 00:09:15]} {[%emt 00:00:47]} 37. axb5
{[%clk 00:51:41]} {[%emt 00:00:18]} axb5 {[%clk 00:09:34]} {[%emt 00:00:12]} 38.
Re1 {[%clk 00:51:00]} {[%emt 00:01:10]} Kf8 {[%clk 00:09:29]} {[%emt 00:00:35]}
39. Reb1 {[%clk 00:51:12]} {[%emt 00:00:19]} Rb8 {[%clk 00:08:56]} {[%emt
00:01:02]} 40. Ke4 {[%clk 00:50:58]} {[%emt 00:00:44]} Rd7 {[%clk 00:07:39]}
{[%emt 00:01:47]} 41. Rxb5 {[%emt 00:01:09]} Re8+ {[%clk 00:06:57]} {[%emt
00:01:11]} 42. Kd3 {[%clk 00:50:24]} {[%emt 00:00:26]} Ra7 {[%clk 00:02:24]}
{[%emt 00:05:03]} 43. Rb8 {[%clk 00:49:13]} {[%emt 00:01:42]} Ra3+ {[%clk
00:01:51]} {[%emt 00:01:02]} 44. R1b3 {[%clk 00:47:05]} {[%emt 00:02:38]} Rxb8
{[%clk 00:30:26]} {[%emt 00:01:55]} 45. Rxa3 {[%clk 01:17:12]} {[%emt
00:00:23]} Rb2 {[%clk 00:30:12]} {[%emt 00:00:43]} 46. Ke3 {[%clk 01:16:11]}
{[%emt 00:01:32]} Rb4 {[%clk 00:27:16]} {[%emt 00:03:26]} 47. Ra2 {[%clk
01:12:35]} {[%emt 00:04:07]} Rb3+ {[%clk 00:27:03]} {[%emt 00:00:43]} 48. Ke4
{[%clk 01:12:11]} {[%emt 00:00:54]} Be7 {[%clk 00:22:09]} {[%emt 00:05:21]} 49.
Ne5 {[%clk 01:11:40]} {[%emt 00:01:04]} Kg7 {[%clk 00:21:23]} {[%emt 00:01:16]}
50. Kf5 {[%clk 01:09:37]} {[%emt 00:02:33]} Rb6 {[%clk 00:20:31]} {[%emt
00:01:20]} 51. Ke4 {[%clk 01:08:55]} {[%emt 00:01:13]} 1/2-1/2

[Event "LASS Vårturneringar 2018"]
[Site "Linköping, Sweden"]
[Date "2018.05.13"]
[Round "7.4"]
[White "Knutsson, Håkan"]
[Black "Tiger-Norqvist, Axel"]
[Result "0-1"]
[TimeControl "90 min + 30 sec/move + 30 min/40 moves"]
[WhiteElo "1865"]
[BlackElo "2146"]

1. e4 {[%clk 01:30:55]} {[%emt 00:00:04]} e6 {[%clk 01:30:54]} {[%emt
00:00:07]} 2. d4 {[%clk 01:31:17]} {[%emt 00:00:07]} d5 {[%clk 01:31:18]}
{[%emt 00:00:06]} 3. Nc3 {[%clk 01:31:37]} {[%emt 00:00:08]} Nf6 {[%clk
01:31:41]} {[%emt 00:00:08]} 4. Bg5 {[%clk 01:31:53]} {[%emt 00:00:14]} Bb4
{[%clk 01:31:52]} {[%emt 00:00:19]} 5. e5 {[%clk 01:31:53]} {[%emt 00:00:29]}
h6 {[%clk 01:32:10]} {[%emt 00:00:13]} 6. Bd2 {[%clk 01:32:12]} {[%emt
00:00:10]} Bxc3 {[%clk 01:32:30]} {[%emt 00:00:11]} 7. bxc3 {[%clk 01:32:31]}
{[%emt 00:00:10]} Ne4 {[%clk 01:32:53]} {[%emt 00:00:07]} 8. Qg4 {[%clk
01:32:38]} {[%emt 00:00:23]} Kf8 {[%clk 01:33:13]} {[%emt 00:00:11]} 9. Qf4
{[%clk 01:29:51]} {[%emt 00:03:16]} c5 {[%clk 01:30:01]} {[%emt 00:03:43]} 10.
Bd3 {[%clk 01:28:54]} {[%emt 00:01:26]} Nxd2 {[%clk 01:29:55]} {[%emt
00:00:36]} 11. Qxd2 {[%clk 01:29:10]} {[%emt 00:00:14]} Nc6 {[%clk 01:28:13]}
{[%emt 00:02:13]} 12. Nf3 {[%clk 01:27:10]} {[%emt 00:02:29]} c4 {[%clk
01:27:13]} {[%emt 00:01:32]} 13. Be2 {[%clk 01:27:06]} {[%emt 00:00:32]} b5
{[%clk 01:26:16]} {[%emt 00:01:29]} 14. O-O {[%clk 01:24:15]} {[%emt 00:03:20]}
a5 {[%clk 01:25:23]} {[%emt 00:01:23]} 15. a3 {[%clk 01:21:36]} {[%emt
00:03:09]} Bd7 {[%clk 01:23:51]} {[%emt 00:02:03]} 16. h3 {[%clk 01:18:57]}
{[%emt 00:03:09]} Rb8 {[%clk 01:18:54]} {[%emt 00:05:27]} 17. Nh2 {[%clk
01:15:22]} {[%emt 00:04:05]} Qb6 {[%clk 01:18:12]} {[%emt 00:01:12]} 18. Rab1
{[%clk 01:10:21]} {[%emt 00:05:30]} b4 {[%clk 01:08:15]} {[%emt 00:10:28]} 19.
axb4 {[%clk 01:08:34]} {[%emt 00:02:16]} axb4 {[%clk 01:08:04]} {[%emt
00:00:41]} 20. Qe3 {[%clk 01:08:37]} {[%emt 00:00:26]} Ra8 {[%clk 01:05:57]}
{[%emt 00:02:38]} 21. cxb4 {[%clk 01:00:34]} {[%emt 00:05:32]} Nxd4 {[%clk
00:58:31]} {[%emt 00:10:58]} 22. c3 {[%clk 00:59:39]} {[%emt 00:01:24]} Nxe2+
{[%clk 00:58:53]} {[%emt 00:00:10]} 23. Qxe2 {[%clk 01:00:01]} {[%emt
00:00:08]} Ke7 {[%clk 00:56:19]} {[%emt 00:03:03]} 24. Ra1 {[%clk 00:54:52]}
{[%emt 00:05:39]} d4 {[%clk 00:51:54]} {[%emt 00:04:55]} 25. Rxa8 {[%clk
00:53:32]} {[%emt 00:01:50]} Rxa8 {[%clk 00:51:56]} {[%emt 00:00:28]} 26. Qe4
{[%clk 00:53:36]} {[%emt 00:00:25]} Bc6 {[%clk 00:49:58]} {[%emt 00:02:29]} 27.
Qxd4 {[%clk 00:52:09]} {[%emt 00:01:57]} Qxd4 {[%clk 00:50:16]} {[%emt
00:00:13]} 28. cxd4 {[%clk 00:52:36]} {[%emt 00:00:03]} Rb8 {[%clk 00:38:51]}
{[%emt 00:11:54]} 29. Rb1 {[%clk 00:50:49]} {[%emt 00:02:13]} Be4 {[%clk
00:38:41]} {[%emt 00:00:44]} 30. Rc1 {[%clk 00:43:21]} {[%emt 00:07:59]} Rxb4
{[%clk 00:38:45]} {[%emt 00:00:27]} 31. Nf3 {[%clk 00:39:56]} {[%emt 00:03:54]}
Bxf3 {[%clk 00:36:02]} {[%emt 00:03:13]} 32. gxf3 {[%clk 00:40:09]} {[%emt
00:00:16]} Kd7 {[%clk 00:36:26]} {[%emt 00:00:07]} 33. Kf1 {[%clk 00:40:08]}
{[%emt 00:00:30]} Kc6 {[%clk 00:36:44]} {[%emt 00:00:13]} 34. Ke2 {[%clk
00:37:19]} {[%emt 00:03:19]} Kd5 {[%clk 00:36:09]} {[%emt 00:01:05]} 35. Rd1
{[%clk 00:36:53]} {[%emt 00:00:55]} Rb2+ {[%clk 00:35:30]} {[%emt 00:01:09]} 36.
Ke3 {[%clk 00:36:37]} {[%emt 00:00:46]} g5 {[%clk 00:34:44]} {[%emt 00:01:17]}
37. Ra1 {[%clk 00:35:52]} {[%emt 00:01:14]} Rb3+ {[%clk 00:35:07]} {[%emt
00:00:07]} 0-1